fUSD/lending_fUSD_20260506
["ID","MTS","AMOUNT","RATE_DAILY","PERIOD"]
[421696043,1778045609000,-151.0,0.000136,2]
[421696041,1778045609000,-151.0,0.000136,2]
[421696042,1778045609000,-151.0,0.000136,2]
[421696044,1778045609000,-151.0,0.000136,2]
[421696047,1778045609000,-150.0,0.000136,2]
[421696035,1778045609000,-151.0,0.000136,2]
[421696057,1778045609000,-500.0,0.00013698,2]
[421696045,1778045609000,-151.0,0.000136,2]
[421696056,1778045609000,-500.0,0.00013698,2]
[421696054,1778045609000,-500.0,0.00013698,2]
[421696053,1778045609000,-500.0,0.00013698,2]
[421696052,1778045609000,-500.0,0.00013698,2]
[421696055,1778045609000,-500.0,0.00013698,2]
[421696046,1778045609000,-151.0,0.000136,2]
[421696048,1778045609000,-2366779.98121617,0.000136,2]
[421696049,1778045609000,-309.48193511,0.000136,2]
[421696050,1778045609000,-500.0,0.00013698,2]
[421696051,1778045609000,-500.0,0.00013698,2]
[421696128,1778045610000,-9873.28666989,0.00016293,2]
[421696124,1778045610000,-948.98232598,0.00016068,2]
[421696127,1778045610000,-500.0,0.00016289,2]
[421696126,1778045610000,-3662.44705449,0.00016266,2]
[421696125,1778045610000,-474.47361691,0.0001611,15]
[421696113,1778045610000,-307.4936949,0.00015521,2]
[421696121,1778045610000,-3662.44705449,0.0001592,2]
[421696119,1778045610000,-433.0,0.00015834,2]
[421696122,1778045610000,-300.0,0.00016,2]
[421696120,1778045610000,-360.0,0.00015899,2]
[421696129,1778045610000,-2338.6,0.00016438,2]
[421696123,1778045610000,-2351.0,0.00016003,2]
[421696131,1778045610000,-999.99,0.00016454,2]
[421696143,1778045610000,-544.06732421,0.00016705,2]
[421696132,1778045610000,-7676.38,0.00016454,2]
[421696133,1778045610000,-428.62,0.0001653,2]
[421696134,1778045610000,-3662.44705449,0.00016612,2]
[421696135,1778045610000,-296.59,0.00016625,2]
[421696136,1778045610000,-157.37,0.0001666,2]
[421696137,1778045610000,-150.99,0.00016673,2]
[421696138,1778045610000,-9999.99,0.00016673,2]
[421696139,1778045610000,-190.82,0.00016703,2]
[421696140,1778045610000,-500.0,0.00016705,2]
[421696141,1778045610000,-500.0,0.00016705,2]
[421696145,1778045610000,-500.0,0.00016705,2]
[421696118,1778045610000,-2000.0,0.00015808,2]
[421696130,1778045610000,-9999.99,0.00016454,2]
[421696115,1778045610000,-1000.0,0.0001555,2]
[421696088,1778045610000,-1680.0,0.00014548,2]
[421696116,1778045610000,-3662.44705449,0.00015575,2]
[421696087,1778045610000,-3662.44705449,0.00014537,2]
[421696142,1778045610000,-500.0,0.00016705,2]
[421696089,1778045610000,-279.99,0.00014599,2]
[421696091,1778045610000,-185.15,0.00014629,2]
[421696093,1778045610000,-166.69,0.00014901,2]
[421696092,1778045610000,-3662.44705449,0.00014883,2]
[421696094,1778045610000,-245.87494951,0.00014973,2]
[421696095,1778045610000,-500.0,0.00014973,2]
[421696097,1778045610000,-319.14849905,0.00014973,2]
[421696098,1778045610000,-500.0,0.00014973,2]
[421696096,1778045610000,-500.0,0.00014973,2]
[421696099,1778045610000,-500.0,0.00014973,2]
[421696114,1778045610000,-1000.0,0.00015521,2]
[421696100,1778045610000,-503.82961373,0.00014973,2]
[421696103,1778045610000,-253.483962,0.00015,2]
[421696104,1778045610000,-253.483962,0.00015,2]
[421696101,1778045610000,-1909533.98735726,0.00015,2]
[421696102,1778045610000,-3129.04007872,0.00015,2]
[421696106,1778045610000,-253.483962,0.00015,2]
[421696108,1778045610000,-290.55978743,0.00015104,21]
[421696107,1778045610000,-159.17631841,0.00015104,21]
[421696109,1778045610000,-3662.44705449,0.00015229,2]
[421696110,1778045610000,-250.0,0.00015258,2]
[421696111,1778045610000,-150.0,0.00015275,2]
[421696112,1778045610000,-185.15,0.00015326,2]
[421696117,1778045610000,-500.0,0.00015692,2]
[421696105,1778045610000,-253.483962,0.00015,2]
[421696144,1778045610000,-500.0,0.00016705,2]
[421696090,1778045610000,-255.0,0.00014619,2]
[421696152,1778045610000,-500.0,0.00016773,2]
[421696178,1778045610000,-153.12137068,0.00018008,2]
[421696179,1778045610000,-1797.9256457,0.000181,2]
[421696181,1778045610000,-500.94430657,0.00018199,2]
[421696185,1778045610000,-2338.6,0.0001841,2]
[421696184,1778045610000,-180.45515395,0.00018373,2]
[421696183,1778045610000,-89398.23,0.00018356,2]
[421696182,1778045610000,-369.08866326,0.00018331,2]
[421696186,1778045610000,-2004.32156241,0.00018416,2]
[421696187,1778045610000,-2000.0,0.00018416,2]
[421696188,1778045610000,-2000.0,0.00018416,2]
[421696189,1778045610000,-500.0,0.00018497,2]
[421696191,1778045610000,-137151.08452491,0.000188,2]
[421696190,1778045610000,-1252.0,0.00018575,2]
[421696192,1778045610000,-1634.77125774,0.00018964,2]
[421696193,1778045610000,-2500.0,0.00018964,2]
[421696194,1778045610000,-500.0,0.0001904,2]
[421696196,1778045610000,-2500.0,0.00019134,2]
[421696197,1778045610000,-500.0,0.00019178,2]
[421696198,1778045610000,-500.0,0.00019178,2]
[421696195,1778045610000,-9873.28666989,0.00019086,2]
[421696204,1778045610000,-500.0,0.00019178,2]
[421696205,1778045610000,-500.0,0.00019178,2]
[421696200,1778045610000,-500.0,0.00019178,2]
[421696202,1778045610000,-500.0,0.00019178,2]
[421696149,1778045610000,-500.0,0.00016773,2]
[421696201,1778045610000,-500.0,0.00019178,2]
[421696199,1778045610000,-500.0,0.00019178,2]
[421696180,1778045610000,-500.0,0.00018199,2]
[421696177,1778045610000,-110617.00103074,0.00018,2]
[421696203,1778045610000,-500.0,0.00019178,2]
[421696176,1778045610000,-350.0,0.00018,2]
[421696175,1778045610000,-500.0,0.00017999,2]
[421696147,1778045610000,-500.0,0.00016705,2]
[421696148,1778045610000,-199.36,0.00016712,2]
[421696150,1778045610000,-500.14771271,0.00016773,2]
[421696151,1778045610000,-500.0,0.00016773,2]
[421696153,1778045610000,-521.03068147,0.00016773,2]
[421696158,1778045610000,-374602.19120611,0.00017,2]
[421696155,1778045610000,-517.65628542,0.00016773,2]
[421696156,1778045610000,-500.0,0.00016773,2]
[421696154,1778045610000,-500.0,0.00016773,2]
[421696157,1778045610000,-163.68234244,0.00016773,2]
[421696159,1778045610000,-736.0,0.00017144,2]
[421696160,1778045610000,-960.44,0.00017256,2]
[421696146,1778045610000,-500.0,0.00016705,2]
[421696163,1778045610000,-1000.0,0.00017321,2]
[421696161,1778045610000,-1000.0,0.00017321,2]
[421696173,1778045610000,-1500.0,0.00017868,2]
[421696169,1778045610000,-2000.0,0.00017784,2]
[421696170,1778045610000,-522.06145725,0.00017868,2]
[421696172,1778045610000,-1500.0,0.00017868,2]
[421696171,1778045610000,-1500.0,0.00017868,2]
[421696174,1778045610000,-150.0,0.00017993,2]
[421696167,1778045610000,-4212.0509639,0.00017614,2]
[421696166,1778045610000,-3292.0,0.00017604,2]
[421696165,1778045610000,-150.0,0.00017397,2]
[421696164,1778045610000,-1000.0,0.00017321,2]
[421696162,1778045610000,-1000.0,0.00017321,2]
[421696168,1778045610000,-791.29362206,0.000177,2]
[421696245,1778045611000,-4986.65705926,0.000199,3]
[421696244,1778045611000,-500.0,0.00019845,2]
[421696241,1778045611000,-500.0,0.00019811,2]
[421696240,1778045611000,-500.0,0.00019811,2]
[421696239,1778045611000,-973.94949673,0.000198,2]
[421696238,1778045611000,-2000.0,0.00019761,2]
[421696237,1778045611000,-973.94949673,0.000196,2]
[421696236,1778045611000,-272.0,0.00019589,2]
[421696243,1778045611000,-163.16558903,0.00019845,2]
[421696242,1778045611000,-500.0,0.00019811,2]
[421696235,1778045611000,-150.0,0.00019589,2]
[421696252,1778045611000,-319.0,0.0002,2]
[421696247,1778045611000,-1000.0,0.0001997,2]
[421696249,1778045611000,-1000.0,0.0001997,2]
[421696248,1778045611000,-1000.0,0.0001997,2]
[421696250,1778045611000,-529.0,0.0002,2]
[421696251,1778045611000,-973.94949673,0.0002,2]
[421696256,1778045611000,-786.0,0.0002,2]
[421696253,1778045611000,-158.0,0.0002,2]
[421696258,1778045611000,-400.0,0.0002,2]
[421696257,1778045611000,-232.0,0.0002,2]
[421696255,1778045611000,-223.0,0.0002,2]
[421696254,1778045611000,-250.0,0.0002,2]
[421696234,1778045611000,-150.0,0.00019589,2]
[421696246,1778045611000,-286741.23074955,0.0001995,15]
[421696230,1778045611000,-3000.0,0.00019512,2]
[421696219,1778045611000,-964.36917,0.00019413,2]
[421696229,1778045611000,-162.55277151,0.0001943,2]
[421696206,1778045611000,-500.0,0.00019178,2]
[421696207,1778045611000,-500.0,0.00019178,2]
[421696208,1778045611000,-500.0,0.00019178,2]
[421696210,1778045611000,-500.0,0.00019178,2]
[421696212,1778045611000,-11082.87,0.00019178,2]
[421696209,1778045611000,-500.0,0.00019178,2]
[421696211,1778045611000,-500.0,0.00019178,2]
[421696213,1778045611000,-4609.0,0.00019364,2]
[421696215,1778045611000,-964.36917,0.00019413,2]
[421696218,1778045611000,-964.36917,0.00019413,2]
[421696216,1778045611000,-964.36917,0.00019413,2]
[421696227,1778045611000,-500.0,0.00019422,2]
[421696217,1778045611000,-151.0,0.00019413,2]
[421696214,1778045611000,-973.94949673,0.000194,2]
[421696221,1778045611000,-812.638477,0.00019413,2]
[421696223,1778045611000,-812.638477,0.00019413,2]
[421696224,1778045611000,-960.44,0.00019413,2]
[421696222,1778045611000,-812.638477,0.00019413,2]
[421696225,1778045611000,-501.05799506,0.00019422,2]
[421696226,1778045611000,-500.0,0.00019422,2]
[421696228,1778045611000,-500.0,0.00019422,2]
[421696231,1778045611000,-1000.0,0.00019588,2]
[421696232,1778045611000,-150.0,0.00019589,2]
[421696233,1778045611000,-150.0,0.00019589,2]
[421696220,1778045611000,-812.638477,0.00019413,2]
[421696259,1778045611000,-7067.96587589,0.0002,2]
[421696261,1778045611000,-457.0,0.0002,2]
[421696262,1778045611000,-25877.32509415,0.0002,2]
[421696293,1778045611000,-58241.82039864,0.000215,2]
[421696290,1778045611000,-1117.83469168,0.00021232,2]
[421696291,1778045611000,-6453.0,0.000213,2]
[421696295,1778045611000,-2000.0,0.00021737,2]
[421696294,1778045611000,-960.44,0.00021571,2]
[421696297,1778045611000,-1316.0,0.00021787,2]
[421696296,1778045611000,-4212.0509639,0.00021739,2]
[421696299,1778045611000,-225.3,0.00021918,5]
[421696301,1778045611000,-319.0,0.00022,2]
[421696298,1778045611000,-9873.28666989,0.00021878,2]
[421696300,1778045611000,-529.0,0.00022,2]
[421696289,1778045611000,-1461.74205325,0.00021066,2]
[421696302,1778045611000,-158.0,0.00022,2]
[421696306,1778045611000,-232.0,0.00022,2]
[421696305,1778045611000,-786.0,0.00022,2]
[421696307,1778045611000,-450.0,0.00022,2]
[421696308,1778045611000,-457.0,0.00022,2]
[421696310,1778045611000,-2338.6,0.00022353,2]
[421696309,1778045611000,-171.0,0.00022,2]
[421696311,1778045611000,-2900.0,0.000225,15]
[421696312,1778045611000,-35948.84403507,0.000225,2]
[421696313,1778045611000,-529.0,0.00023,2]
[421696314,1778045611000,-319.0,0.00023,2]
[421696260,1778045611000,-3909.0,0.0002,2]
[421696303,1778045611000,-250.0,0.00022,2]
[421696288,1778045611000,-2017.16375829,0.00021066,2]
[421696304,1778045611000,-223.0,0.00022,2]
[421696287,1778045611000,-171.0,0.00021,2]
[421696265,1778045611000,-26729.49640884,0.0002,2]
[421696292,1778045611000,-500.0,0.00021303,2]
[421696264,1778045611000,-171.0,0.0002,2]
[421696263,1778045611000,-1000.0,0.0002,7]
[421696266,1778045611000,-190.82,0.00020043,2]
[421696267,1778045611000,-3385.17092439,0.0002006,2]
[421696270,1778045611000,-973.94949673,0.000202,2]
[421696269,1778045611000,-1500.0,0.00020136,2]
[421696271,1778045611000,-632.20967093,0.00020359,2]
[421696272,1778045611000,-2338.6,0.00020381,2]
[421696274,1778045611000,-431.73147682,0.00020518,2]
[421696273,1778045611000,-671.63544967,0.00020393,2]
[421696268,1778045611000,-2129.0,0.00020114,2]
[421696280,1778045611000,-319.0,0.00021,2]
[421696276,1778045611000,-1500.0,0.00020518,2]
[421696277,1778045611000,-2000.0,0.00020684,2]
[421696278,1778045611000,-22926.97907708,0.000207,2]
[421696279,1778045611000,-529.0,0.00021,2]
[421696282,1778045611000,-250.0,0.00021,2]
[421696281,1778045611000,-158.0,0.00021,2]
[421696285,1778045611000,-232.0,0.00021,2]
[421696283,1778045611000,-223.0,0.00021,2]
[421696284,1778045611000,-786.0,0.00021,2]
[421696275,1778045611000,-1500.0,0.00020518,2]
[421696286,1778045611000,-457.0,0.00021,2]
[421696354,1778045612000,-500.0,0.00024657,2]
[421696343,1778045612000,-171.0,0.00024,2]
[421696353,1778045612000,-2538.93012455,0.00024423,2]
[421696351,1778045612000,-200.0,0.00024192,2]
[421696352,1778045612000,-2338.6,0.00024324,2]
[421696348,1778045612000,-3509.73,0.00024174,2]
[421696349,1778045612000,-3143.16,0.00024174,2]
[421696347,1778045612000,-434.99,0.00024174,2]
[421696346,1778045612000,-406.24,0.00024174,2]
[421696355,1778045612000,-500.0,0.00024657,2]
[421696350,1778045612000,-27651.22,0.00024174,2]
[421696356,1778045612000,-500.0,0.00024657,2]
[421696367,1778045612000,-150.0,0.00025,14]
[421696359,1778045612000,-150.0,0.00024658,2]
[421696358,1778045612000,-500.0,0.00024657,2]
[421696363,1778045612000,-161.28,0.00024658,2]
[421696360,1778045612000,-1000.0,0.00024658,2]
[421696364,1778045612000,-156.78,0.00024658,2]
[421696361,1778045612000,-214.05,0.00024658,2]
[421696362,1778045612000,-150.0,0.00024658,2]
[421696365,1778045612000,-9873.28666989,0.00024671,2]
[421696366,1778045612000,-532.0,0.00025,2]
[421696368,1778045612000,-319.0,0.00025,2]
[421696370,1778045612000,-231.0,0.00025,2]
[421696345,1778045612000,-200.0,0.00024105,2]
[421696357,1778045612000,-500.0,0.00024657,2]
[421696344,1778045612000,-500.0,0.00024089,2]
[421696317,1778045612000,-223.0,0.00023,2]
[421696342,1778045612000,-1252.07895434,0.00024,2]
[421696316,1778045612000,-250.0,0.00023,2]
[421696315,1778045612000,-158.0,0.00023,2]
[421696318,1778045612000,-786.0,0.00023,2]
[421696369,1778045612000,-250.0,0.00025,2]
[421696321,1778045612000,-171.0,0.00023,2]
[421696319,1778045612000,-232.0,0.00023,2]
[421696320,1778045612000,-457.0,0.00023,2]
[421696323,1778045612000,-1650.0,0.000233,2]
[421696322,1778045612000,-369.08866326,0.00023162,2]
[421696324,1778045612000,-600.0,0.000233,30]
[421696326,1778045612000,-9035.0,0.0002343,2]
[421696328,1778045612000,-2000.0,0.00023713,2]
[421696341,1778045612000,-3600.0,0.00024,2]
[421696327,1778045612000,-401.18521548,0.000235,2]
[421696330,1778045612000,-25142.47854187,0.000238,2]
[421696329,1778045612000,-960.44,0.00023728,2]
[421696332,1778045612000,-319.0,0.00024,2]
[421696331,1778045612000,-529.0,0.00024,2]
[421696333,1778045612000,-173.28566167,0.00024,2]
[421696335,1778045612000,-223.0,0.00024,2]
[421696334,1778045612000,-250.0,0.00024,2]
[421696338,1778045612000,-232.0,0.00024,2]
[421696336,1778045612000,-786.0,0.00024,2]
[421696340,1778045612000,-457.0,0.00024,2]
[421696337,1778045612000,-1035.52786894,0.00024,2]
[421696339,1778045612000,-500.0,0.00024,2]
[421696325,1778045612000,-296.59,0.00023351,2]
[421696374,1778045612000,-209.86649147,0.00025,2]
[421696424,1778045612000,-184.320957,0.00026137,2]
[421696372,1778045612000,-251.52156229,0.00025,2]
[421696407,1778045612000,-1113.32219249,0.00025367,5]
[421696405,1778045612000,-1010.12759925,0.00025367,5]
[421696404,1778045612000,-1036.9941727,0.00025367,5]
[421696408,1778045612000,-1103.14809212,0.00025367,5]
[421696406,1778045612000,-1038.97397055,0.00025367,5]
[421696409,1778045612000,-156.78,0.00025388,30]
[421696410,1778045612000,-156.78,0.00025753,2]
[421696411,1778045612000,-6819.0,0.00025773,2]
[421696413,1778045612000,-434.99,0.00025786,2]
[421696412,1778045612000,-406.24,0.00025786,2]
[421696415,1778045612000,-3143.16,0.00025786,2]
[421696416,1778045612000,-27651.22,0.00025786,2]
[421696420,1778045612000,-550.0,0.00026,2]
[421696417,1778045612000,-4212.0509639,0.00025864,2]
[421696419,1778045612000,-31157.8661112,0.0002589,5]
[421696418,1778045612000,-161.28,0.00025875,30]
[421696422,1778045612000,-1021.66,0.00026,2]
[421696421,1778045612000,-4573.71407849,0.00026,2]
[421696423,1778045612000,-156.78,0.00026119,7]
[421696425,1778045612000,-1021.66,0.00026258,2]
[421696426,1778045612000,-2338.6,0.00026296,2]
[421696427,1778045612000,-161.28,0.00026484,2]
[421696428,1778045612000,-156.78,0.00026484,30]
[421696429,1778045612000,-1021.66,0.00026517,2]
[421696371,1778045612000,-795.92786075,0.00025,2]
[421696403,1778045612000,-1084.44977672,0.00025367,5]
[421696402,1778045612000,-1014.83174597,0.00025367,5]
[421696414,1778045612000,-3509.73,0.00025786,2]
[421696399,1778045612000,-1012.27845377,0.00025367,5]
[421696401,1778045612000,-1132.96329353,0.00025367,5]
[421696375,1778045612000,-1805.18416492,0.00025,2]
[421696376,1778045612000,-473.0,0.00025,2]
[421696378,1778045612000,-540.0,0.00025,2]
[421696377,1778045612000,-2000.0,0.00025,2]
[421696379,1778045612000,-617.75203949,0.00025,2]
[421696380,1778045612000,-173.03519017,0.00025,2]
[421696382,1778045612000,-156.78,0.00025023,7]
[421696383,1778045612000,-250.0,0.00025205,2]
[421696381,1778045612000,-3078.04110754,0.00025,2]
[421696384,1778045612000,-2000.0,0.0002521,2]
[421696385,1778045612000,-2000.0,0.0002521,2]
[421696387,1778045612000,-2000.0,0.0002521,2]
[421696373,1778045612000,-1126.5992081,0.00025,2]
[421696389,1778045612000,-2000.0,0.0002521,2]
[421696386,1778045612000,-2000.0,0.0002521,2]
[421696398,1778045612000,-1049.06323489,0.00025367,5]
[421696397,1778045612000,-1112.26227109,0.00025367,5]
[421696395,1778045612000,-2000.0,0.0002521,2]
[421696396,1778045612000,-161.28,0.00025266,7]
[421696393,1778045612000,-2000.0,0.0002521,2]
[421696400,1778045612000,-1130.41952495,0.00025367,5]
[421696392,1778045612000,-2000.0,0.0002521,2]
[421696388,1778045612000,-2000.0,0.0002521,2]
[421696390,1778045612000,-2000.0,0.0002521,2]
[421696391,1778045612000,-2000.0,0.0002521,2]
[421696394,1778045612000,-2000.0,0.0002521,2]
[421696471,1778045613000,-59971.16,0.000274,7]
[421696469,1778045613000,-14579.69,0.00027397,10]
[421696468,1778045613000,-17495.63,0.00027397,10]
[421696461,1778045613000,-328.357965,0.00027397,2]
[421696467,1778045613000,-20994.76,0.00027397,10]
[421696465,1778045613000,-1419.836767,0.00027397,2]
[421696466,1778045613000,-1419.836767,0.00027397,2]
[421696464,1778045613000,-1419.836767,0.00027397,2]
[421696462,1778045613000,-328.357965,0.00027397,2]
[421696470,1778045613000,-151.0,0.00027397,2]
[421696463,1778045613000,-1419.836767,0.00027397,2]
[421696472,1778045613000,-500.0,0.000274,7]
[421696480,1778045613000,-1000.0,0.00027656,2]
[421696473,1778045613000,-9873.28666989,0.00027464,2]
[421696474,1778045613000,-1021.66,0.0002755,2]
[421696476,1778045613000,-150.0,0.00027647,2]
[421696477,1778045613000,-1700.95813321,0.00027647,2]
[421696479,1778045613000,-166.39269129,0.00027647,2]
[421696478,1778045613000,-150.0,0.00027647,2]
[421696481,1778045613000,-1000.0,0.00027656,2]
[421696483,1778045613000,-570.0,0.00027656,2]
[421696482,1778045613000,-1000.0,0.00027656,2]
[421696484,1778045613000,-275.96,0.000277,7]
[421696485,1778045613000,-161.28,0.00027701,30]
[421696459,1778045613000,-328.357965,0.00027397,2]
[421696475,1778045613000,-156.78,0.0002758,30]
[421696458,1778045613000,-1000.0,0.00027397,20]
[421696430,1778045613000,-200.0,0.00026671,2]
[421696457,1778045613000,-214.05,0.00027397,2]
[421696431,1778045613000,-296.59,0.00026753,2]
[421696433,1778045613000,-156.78,0.00026849,2]
[421696432,1778045613000,-1021.66,0.00026775,2]
[421696434,1778045613000,-1021.66,0.00027033,2]
[421696437,1778045613000,-156.78,0.00027214,7]
[421696435,1778045613000,-161.28,0.00027093,7]
[421696436,1778045613000,-507.0,0.00027137,2]
[421696438,1778045613000,-1021.66,0.00027292,2]
[421696440,1778045613000,-2000.0,0.00027293,2]
[421696439,1778045613000,-166.64,0.00027293,2]
[421696441,1778045613000,-2000.0,0.00027293,2]
[421696442,1778045613000,-2000.0,0.00027293,2]
[421696460,1778045613000,-328.357965,0.00027397,2]
[421696443,1778045613000,-2000.0,0.00027293,2]
[421696444,1778045613000,-2000.0,0.00027293,2]
[421696447,1778045613000,-2000.0,0.00027293,2]
[421696446,1778045613000,-2000.0,0.00027293,2]
[421696449,1778045613000,-2000.0,0.00027293,2]
[421696448,1778045613000,-2000.0,0.00027293,2]
[421696450,1778045613000,-163.27,0.00027397,2]
[421696456,1778045613000,-1015.9,0.00027397,2]
[421696454,1778045613000,-253.483962,0.00027397,2]
[421696451,1778045613000,-253.483962,0.00027397,2]
[421696453,1778045613000,-253.483962,0.00027397,2]
[421696452,1778045613000,-253.483962,0.00027397,2]
[421696455,1778045613000,-1500.0,0.00027397,2]
[421696445,1778045613000,-2000.0,0.00027293,2]
[421696489,1778045613000,-285.05361366,0.00027993,2]
[421696490,1778045613000,-369.08866326,0.00027993,2]
[421696487,1778045613000,-1408.2132635,0.00027932,2]
[421696520,1778045613000,-152.03,0.00028871,7]
[421696521,1778045613000,-161.28,0.00028919,7]
[421696522,1778045613000,-153.6,0.00028931,2]
[421696523,1778045613000,-152.03,0.00028931,30]
[421696527,1778045613000,-152.03,0.00029052,7]
[421696526,1778045613000,-153.6,0.00029031,7]
[421696525,1778045613000,-2103.10961501,0.00029,2]
[421696524,1778045613000,-152.03,0.00028991,2]
[421696528,1778045613000,-1021.66,0.000291,2]
[421696529,1778045613000,-152.03,0.00029112,30]
[421696531,1778045613000,-153.6,0.00029132,30]
[421696532,1778045613000,-155.48,0.0002914,2]
[421696519,1778045613000,-507.0,0.0002887,3]
[421696533,1778045613000,-152.03,0.00029172,2]
[421696538,1778045613000,-1021.66,0.00029358,2]
[421696535,1778045613000,-59971.16,0.000292,7]
[421696536,1778045613000,-153.63,0.00029232,2]
[421696537,1778045613000,-152.07,0.00029232,7]
[421696540,1778045613000,-161.28,0.00029528,30]
[421696539,1778045613000,-513.59851826,0.00029428,2]
[421696542,1778045613000,-1021.66,0.00029617,2]
[421696541,1778045613000,-150.0,0.00029534,2]
[421696543,1778045613000,-155.48,0.00029638,7]
[421696544,1778045613000,-254.44,0.000297,14]
[421696545,1778045613000,-507.0,0.00029737,4]
[421696488,1778045613000,-156.78,0.00027945,2]
[421696534,1778045613000,-500.0,0.00029199,2]
[421696518,1778045613000,-1021.66,0.00028842,2]
[421696530,1778045613000,-152.0,0.00029126,3]
[421696517,1778045613000,-153.6,0.0002883,30]
[421696516,1778045613000,-152.03,0.0002881,2]
[421696491,1778045613000,-600.0,0.00028,2]
[421696492,1778045613000,-162.55277151,0.00028,7]
[421696494,1778045613000,-169.54,0.00028,2]
[421696496,1778045613000,-169.54,0.00028,2]
[421696493,1778045613000,-45918.75160327,0.00028,2]
[421696495,1778045613000,-169.54,0.00028,2]
[421696497,1778045613000,-169.54,0.00028,2]
[421696500,1778045613000,-507.0,0.00028004,2]
[421696498,1778045613000,-169.54,0.00028,2]
[421696499,1778045613000,-169.54,0.00028,2]
[421696503,1778045613000,-161.28,0.0002831,2]
[421696501,1778045613000,-1021.66,0.00028067,2]
[421696486,1778045613000,-1021.66,0.00027808,2]
[421696505,1778045613000,-1021.66,0.00028325,2]
[421696502,1778045613000,-2338.6,0.00028267,2]
[421696513,1778045613000,-153.6,0.0002873,7]
[421696512,1778045613000,-152.03,0.0002869,7]
[421696515,1778045613000,-162.55277151,0.000288,7]
[421696511,1778045613000,-200.92336054,0.0002867,2]
[421696510,1778045613000,-155.48,0.00028642,30]
[421696514,1778045613000,-152.03,0.0002875,30]
[421696508,1778045613000,-153.6,0.0002863,2]
[421696506,1778045613000,-199.36,0.00028493,2]
[421696507,1778045613000,-1021.66,0.00028583,2]
[421696504,1778045613000,-156.78,0.0002831,7]
[421696509,1778045613000,-152.03,0.0002863,2]
[421696585,1778045614000,-507.0,0.00030603,5]
[421696583,1778045614000,-181.3652191,0.00030526,5]
[421696584,1778045614000,-59971.16,0.000306,7]
[421696576,1778045614000,-1021.66,0.00030392,30]
[421696582,1778045614000,-180.0,0.00030526,5]
[421696581,1778045614000,-197.73,0.00030465,2]
[421696586,1778045614000,-1021.66,0.0003065,30]
[421696580,1778045614000,-227.65,0.00030437,2]
[421696577,1778045614000,-152.0,0.00030396,4]
[421696578,1778045614000,-184.97,0.00030411,120]
[421696588,1778045614000,-200.0,0.00030737,2]
[421696579,1778045614000,-200.0,0.00030437,2]
[421696587,1778045614000,-276.53,0.00030737,2]
[421696594,1778045614000,-314.214851,0.00031064,2]
[421696590,1778045614000,-1630.68247498,0.0003084,2]
[421696593,1778045614000,-200.0,0.00031037,2]
[421696595,1778045614000,-197.73,0.00031088,2]
[421696592,1778045614000,-150.0,0.00031011,2]
[421696596,1778045614000,-1021.66,0.00031167,30]
[421696591,1778045614000,-1021.66,0.00030908,30]
[421696600,1778045614000,-171.0,0.00031292,30]
[421696598,1778045614000,-232.0,0.00031292,30]
[421696602,1778045614000,-319.0,0.00031293,30]